[Event "*** Titled Tuesday Blitz"]
[Site "Chess.com"]
[Date "2018.04.03"]
[Round "1"]
[White "pedromartinez91"]
[Black "BilodeauA"]
[Result "1-0"]
[WhiteElo "2360"]
[BlackElo "2641"]
[TimeControl "180+2"]
[EndTime "13:10:52 PDT"]
[Termination "pedromartinez91 won by resignation"]

1. d4 {[%clk 0:02:26.8]} 1... d5 {[%clk 0:03:00.4]} 2. c4 {[%clk 0:02:26.1]}
2... dxc4 {[%clk 0:03:02.3]} 3. e3 {[%clk 0:02:26.5]} 3... e5 {[%clk 0:03:03]}
4. Bxc4 {[%clk 0:02:25.7]} 4... Nc6 {[%clk 0:03:04.1]} 5. Nf3 {[%clk 0:02:24.4]}
5... e4 {[%clk 0:03:05.2]} 6. Nfd2 {[%clk 0:02:23.7]} 6... Qg5 {[%clk
0:03:06.2]} 7. g3 {[%clk 0:02:18.9]} 7... Nf6 {[%clk 0:03:06.4]} 8. Nc3 {[%clk
0:02:18.7]} 8... Qg6 {[%clk 0:03:07.3]} 9. a3 {[%clk 0:02:06.9]} 9... Bd6 {[%clk
0:03:08.2]} 10. Qc2 {[%clk 0:02:06.9]} 10... O-O {[%clk 0:03:04.2]} 11. Nd5
{[%clk 0:02:04.1]} 11... Re8 {[%clk 0:02:40.6]} 12. b4 {[%clk 0:01:54.6]} 12...
Bf5 {[%clk 0:02:26.4]} 13. Nxf6+ {[%clk 0:01:52.9]} 13... Qxf6 {[%clk
0:02:26.4]} 14. Bb2 {[%clk 0:01:45.5]} 14... Qg6 {[%clk 0:02:17.8]} 15. O-O-O
{[%clk 0:01:06]} 15... Rad8 {[%clk 0:02:18.2]} 16. h3 {[%clk 0:01:05.1]} 16...
a5 {[%clk 0:02:17.7]} 17. b5 {[%clk 0:01:04.9]} 17... Nb8 {[%clk 0:02:18.8]} 18.
g4 {[%clk 0:01:06.2]} 18... Be6 {[%clk 0:02:15.6]} 19. Kb1 {[%clk 0:01:00.5]}
19... Nd7 {[%clk 0:02:15.7]} 20. Bxe6 {[%clk 0:00:53.3]} 20... Qxe6 {[%clk
0:02:16.2]} 21. Qc4 {[%clk 0:00:52.7]} 21... Nb6 {[%clk 0:02:15.1]} 22. Qxe6
{[%clk 0:00:53.3]} 22... Rxe6 {[%clk 0:02:17]} 23. Rc1 {[%clk 0:00:49.5]} 23...
Nd5 {[%clk 0:02:12]} 24. Nc4 {[%clk 0:00:48.7]} 24... b6 {[%clk 0:02:11.3]} 25.
Rc2 {[%clk 0:00:43.9]} 25... h6 {[%clk 0:02:09.1]} 26. Rhc1 {[%clk 0:00:41.2]}
26... Rd7 {[%clk 0:02:09]} 27. Ka2 {[%clk 0:00:41.9]} 27... Kh7 {[%clk
0:02:09.5]} 28. Kb3 {[%clk 0:00:42.8]} 28... g5 {[%clk 0:02:08.4]} 29. Nd2
{[%clk 0:00:39.8]} 29... Kg6 {[%clk 0:02:04.6]} 30. Rc6 {[%clk 0:00:33]} 30...
f5 {[%clk 0:01:42.7]} 31. Re1 {[%clk 0:00:18.7]} 31... fxg4 {[%clk 0:01:39.7]}
32. hxg4 {[%clk 0:00:19.1]} 32... Rf7 {[%clk 0:01:38.7]} 33. Re2 {[%clk
0:00:19.4]} 33... Nf6 {[%clk 0:01:39.5]} 34. Rc1 {[%clk 0:00:15.3]} 34... Nxg4
{[%clk 0:01:39.7]} 35. d5 {[%clk 0:00:16.7]} 35... Re8 {[%clk 0:01:39.4]} 36.
Bd4 {[%clk 0:00:15.9]} 36... Rxf2 {[%clk 0:01:37.4]} 37. Rxf2 {[%clk 0:00:17.1]}
37... Nxf2 {[%clk 0:01:39.3]} 38. Rc6 {[%clk 0:00:18.1]} 38... Rd8 {[%clk
0:01:23.7]} 39. Nc4 {[%clk 0:00:18]} 39... Kf5 {[%clk 0:01:13.8]} 40. Nxd6+
{[%clk 0:00:18.8]} 40... cxd6 {[%clk 0:01:14.7]} 41. Bxb6 {[%clk 0:00:18.5]}
41... Rb8 {[%clk 0:01:15.6]} 42. a4 {[%clk 0:00:19.1]} 42... g4 {[%clk
0:01:16.4]} 43. Bc7 {[%clk 0:00:20.1]} 43... Rb7 {[%clk 0:01:11.3]} 44. Bxd6
{[%clk 0:00:20.7]} 44... Nd3 {[%clk 0:01:07.2]} 45. Kc4 {[%clk 0:00:20.9]} 45...
h5 {[%clk 0:01:00.9]} 46. Rc8 {[%clk 0:00:21.7]} 46... Kg6 {[%clk 0:00:41.5]}
47. Rg8+ {[%clk 0:00:20.8]} 47... Kh7 {[%clk 0:00:41]} 48. Rg5 {[%clk
0:00:21.4]} 48... Kh6 {[%clk 0:00:41.9]} 49. Rg8 {[%clk 0:00:22.6]} 49... Rd7
{[%clk 0:00:40]} 50. Bg3 {[%clk 0:00:22.8]} 50... Nb2+ {[%clk 0:00:30.4]} 51.
Kc5 {[%clk 0:00:23.6]} 51... Nxa4+ {[%clk 0:00:31.4]} 52. Kc6 {[%clk 0:00:24.6]}
52... Rf7 {[%clk 0:00:31.8]} 53. d6 {[%clk 0:00:24.8]} 53... Kh7 {[%clk
0:00:25.3]} 54. Rg5 {[%clk 0:00:25.2]} 54... Kh6 {[%clk 0:00:26.8]} 55. Bf4
{[%clk 0:00:25.1]} 55... Nc3 {[%clk 0:00:06.9]} 56. b6 {[%clk 0:00:23.6]} 56...
Na4 {[%clk 0:00:04.4]} 57. b7 {[%clk 0:00:23.8]} 57... Rxb7 {[%clk 0:00:04.9]}
58. Kxb7 {[%clk 0:00:24.3]} 58... g3 {[%clk 0:00:06.1]} 59. Rxg3+ {[%clk
0:00:24.7]} 59... Kh7 {[%clk 0:00:07.6]} 60. d7 {[%clk 0:00:25.6]} 60... Nc5+
{[%clk 0:00:09.1]} 61. Kc6 {[%clk 0:00:26.9]} 61... Nxd7 {[%clk 0:00:10.6]} 62.
Kxd7 {[%clk 0:00:27.5]} 62... a4 {[%clk 0:00:12.5]} 63. Ke7 {[%clk 0:00:24.3]}
63... a3 {[%clk 0:00:13.9]} 64. Kf7 {[%clk 0:00:25.8]} 64... a2 {[%clk
0:00:15.4]} 65. Be5 {[%clk 0:00:27.1]} 65... Kh6 {[%clk 0:00:14.5]} 66. Rg6+
{[%clk 0:00:26.1]} 66... Kh7 {[%clk 0:00:15.7]} 67. Kf6 {[%clk 0:00:25]} 67...
h4 {[%clk 0:00:14.8]} 68. Kg5 {[%clk 0:00:25.4]} 68... h3 {[%clk 0:00:15.4]} 69.
Rh6+ {[%clk 0:00:26.7]} 69... Kg8 {[%clk 0:00:17]} 70. Rxh3 {[%clk 0:00:27.7]}
70... Kf7 {[%clk 0:00:18.6]} 71. Kf5 {[%clk 0:00:28.9]} 71... Ke7 {[%clk
0:00:18.5]} 72. Rh7+ {[%clk 0:00:29.8]} 72... Kd8 {[%clk 0:00:19.8]} 73. Ke6
{[%clk 0:00:30.8]} 73... Kc8 {[%clk 0:00:20.1]} 74. Kd6 {[%clk 0:00:30.1]} 74...
Kb8 {[%clk 0:00:16.9]} 75. Kc6+ {[%clk 0:00:30.9]} 1-0

[Event "*** Titled Tuesday Blitz"]
[Site "Chess.com"]
[Date "2018.04.03"]
[Round "1"]
[White "mokerslag"]
[Black "Parhamov"]
[Result "1/2-1/2"]
[WhiteElo "2418"]
[BlackElo "2814"]
[TimeControl "180+2"]
[EndTime "13:11:29 PDT"]
[Termination "Game drawn by stalemate"]

1. e4 {[%clk 0:03:01.9]} 1... Nf6 {[%clk 0:02:54.7]} 2. e5 {[%clk 0:02:56.2]}
2... Nd5 {[%clk 0:02:54.1]} 3. d4 {[%clk 0:02:56.8]} 3... d6 {[%clk 0:02:53.7]}
4. Nf3 {[%clk 0:02:57.4]} 4... Bg4 {[%clk 0:02:54.3]} 5. Be2 {[%clk 0:02:58.4]}
5... e6 {[%clk 0:02:55]} 6. O-O {[%clk 0:02:58.7]} 6... Be7 {[%clk 0:02:55]} 7.
exd6 {[%clk 0:02:46.6]} 7... cxd6 {[%clk 0:02:55.4]} 8. c4 {[%clk 0:02:47]} 8...
Nb6 {[%clk 0:02:56.1]} 9. b3 {[%clk 0:02:47.9]} 9... O-O {[%clk 0:02:57]} 10.
Nc3 {[%clk 0:02:47]} 10... Bf6 {[%clk 0:02:56.9]} 11. Be3 {[%clk 0:02:46.2]}
11... Nc6 {[%clk 0:02:56.1]} 12. h3 {[%clk 0:02:38.8]} 12... Bxf3 {[%clk
0:02:50.2]} 13. Bxf3 {[%clk 0:02:40.7]} 13... d5 {[%clk 0:02:51.7]} 14. c5
{[%clk 0:02:34.2]} 14... Nc8 {[%clk 0:02:52.6]} 15. Rb1 {[%clk 0:02:33.2]} 15...
N8e7 {[%clk 0:02:37]} 16. b4 {[%clk 0:02:32.5]} 16... Nf5 {[%clk 0:02:37.6]} 17.
Ne2 {[%clk 0:02:26.6]} 17... a6 {[%clk 0:02:33]} 18. a4 {[%clk 0:02:26.8]} 18...
g6 {[%clk 0:02:33.1]} 19. b5 {[%clk 0:02:27.9]} 19... Na5 {[%clk 0:02:34]} 20.
Ng3 {[%clk 0:02:12.7]} 20... Nxg3 {[%clk 0:02:22]} 21. fxg3 {[%clk 0:02:14.6]}
21... Nc4 {[%clk 0:02:23.4]} 22. Bf2 {[%clk 0:02:03.8]} 22... a5 {[%clk
0:02:23.7]} 23. Be2 {[%clk 0:01:47.5]} 23... Bg7 {[%clk 0:02:19.8]} 24. Rc1
{[%clk 0:01:31.6]} 24... Qg5 {[%clk 0:02:13.2]} 25. Bxc4 {[%clk 0:01:29.8]}
25... dxc4 {[%clk 0:02:14.3]} 26. Rxc4 {[%clk 0:01:31.7]} 26... Rfd8 {[%clk
0:02:15.5]} 27. Qf3 {[%clk 0:01:28.2]} 27... Rd5 {[%clk 0:02:15]} 28. c6 {[%clk
0:01:25.3]} 28... bxc6 {[%clk 0:02:14.3]} 29. bxc6 {[%clk 0:01:27.2]} 29... Qe7
{[%clk 0:02:15.4]} 30. c7 {[%clk 0:01:18.9]} 30... Rc8 {[%clk 0:02:16.4]} 31.
Rb1 {[%clk 0:01:16.5]} 31... Qe8 {[%clk 0:01:54.6]} 32. Qf4 {[%clk 0:01:11.9]}
32... Bf8 {[%clk 0:01:54.9]} 33. Rb6 {[%clk 0:01:03.3]} 33... Qd7 {[%clk
0:01:44.2]} 34. Rcc6 {[%clk 0:00:55.2]} 34... g5 {[%clk 0:01:26.4]} 35. Qc1
{[%clk 0:00:47.6]} 35... h6 {[%clk 0:01:14.8]} 36. h4 {[%clk 0:00:21.9]} 36...
Kg7 {[%clk 0:00:55.7]} 37. hxg5 {[%clk 0:00:12.5]} 37... hxg5 {[%clk 0:00:56.4]}
38. Be3 {[%clk 0:00:13.6]} 38... Be7 {[%clk 0:00:56.9]} 39. Rb5 {[%clk
0:00:09.7]} 39... f6 {[%clk 0:00:53.9]} 40. Rxd5 {[%clk 0:00:09.1]} 40... Qxd5
{[%clk 0:00:54.7]} 41. Qc4 {[%clk 0:00:10.5]} 41... Qxc4 {[%clk 0:00:50.1]} 42.
Rxc4 {[%clk 0:00:12.4]} 42... Bd6 {[%clk 0:00:50.8]} 43. Bd2 {[%clk 0:00:13.7]}
43... Rxc7 {[%clk 0:00:51.2]} 44. Rxc7+ {[%clk 0:00:14.5]} 44... Bxc7 {[%clk
0:00:53.1]} 45. g4 {[%clk 0:00:16.4]} 45... Kf7 {[%clk 0:00:54]} 46. Kf1 {[%clk
0:00:17.2]} 46... Ke7 {[%clk 0:00:50.6]} 47. Ke2 {[%clk 0:00:18.3]} 47... Kd6
{[%clk 0:00:52.1]} 48. Kd3 {[%clk 0:00:19.7]} 48... Kd5 {[%clk 0:00:53.5]} 49.
Bc3 {[%clk 0:00:20.4]} 49... Bd8 {[%clk 0:00:53.6]} 50. Bd2 {[%clk 0:00:21.1]}
50... f5 {[%clk 0:00:54.7]} 51. gxf5 {[%clk 0:00:21.5]} 51... exf5 {[%clk
0:00:55.9]} 52. g3 {[%clk 0:00:22.7]} 52... g4 {[%clk 0:00:57.1]} 53. Be1 {[%clk
0:00:22.4]} 53... Bc7 {[%clk 0:00:57.4]} 54. Bf2 {[%clk 0:00:22.3]} 54... Bb6
{[%clk 0:00:58.6]} 55. Be1 {[%clk 0:00:22.7]} 55... Bd8 {[%clk 0:00:56.4]} 56.
Bf2 {[%clk 0:00:21.9]} 56... Bc7 {[%clk 0:00:48.8]} 57. Be1 {[%clk 0:00:22.6]}
57... Bb6 {[%clk 0:00:47.2]} 58. Bf2 {[%clk 0:00:22.9]} 58... Bd8 {[%clk
0:00:45.5]} 59. Be1 {[%clk 0:00:23.8]} 59... Bc7 {[%clk 0:00:43.9]} 60. Bf2
{[%clk 0:00:24.9]} 60... f4 {[%clk 0:00:39.6]} 61. gxf4 {[%clk 0:00:24.4]} 61...
Bxf4 {[%clk 0:00:41.5]} 62. Be1 {[%clk 0:00:23.8]} 62... Bc7 {[%clk 0:00:26.5]}
63. Bd2 {[%clk 0:00:21.1]} 63... g3 {[%clk 0:00:22.8]} 64. Be3 {[%clk
0:00:22.2]} 64... g2 {[%clk 0:00:23.6]} 65. Bg1 {[%clk 0:00:17.9]} 65... Bb6
{[%clk 0:00:21.3]} 66. Be3 {[%clk 0:00:13.3]} 66... Bc7 {[%clk 0:00:19]} 67. Bg1
{[%clk 0:00:14.3]} 67... Bf4 {[%clk 0:00:20.2]} 68. Ke2 {[%clk 0:00:14.8]} 68...
Ke4 {[%clk 0:00:21.4]} 69. d5 {[%clk 0:00:15.1]} 69... Bg3 {[%clk 0:00:20.5]}
70. d6 {[%clk 0:00:14.8]} 70... Bxd6 {[%clk 0:00:20.7]} 71. Kf2 {[%clk
0:00:11.1]} 71... Bc5+ {[%clk 0:00:14.9]} 72. Kxg2 {[%clk 0:00:12.6]} 72... Kd5
{[%clk 0:00:14.1]} 73. Bxc5 {[%clk 0:00:07.7]} 73... Kxc5 {[%clk 0:00:15.4]} 74.
Kf2 {[%clk 0:00:09.6]} 74... Kb4 {[%clk 0:00:17.3]} 75. Ke2 {[%clk 0:00:11.4]}
75... Kxa4 {[%clk 0:00:19.2]} 76. Kd1 {[%clk 0:00:12.9]} 76... Ka3 {[%clk
0:00:21.1]} 77. Kc1 {[%clk 0:00:13.9]} 77... Ka2 {[%clk 0:00:23]} 78. Kc2 {[%clk
0:00:15.2]} 78... a4 {[%clk 0:00:21.1]} 79. Kc1 {[%clk 0:00:16]} 79... a3 {[%clk
0:00:22.6]} 80. Kc2 {[%clk 0:00:17.2]} 80... Ka1 {[%clk 0:00:24.1]} 81. Kc1
{[%clk 0:00:18.7]} 81... a2 {[%clk 0:00:24.6]} 82. Kc2 {[%clk 0:00:20]} 1/2-1/2

[Event "*** Titled Tuesday Blitz"]
[Site "Chess.com"]
[Date "2018.04.03"]
[Round "1"]
[White "dimke2802"]
[Black "Yaacovn"]
[Result "0-1"]
[WhiteElo "2305"]
[BlackElo "2641"]
[TimeControl "180+2"]
[EndTime "13:11:30 PDT"]
[Termination "Yaacovn won by resignation"]

1. d4 {[%clk 0:03:01.1]} 1... Nf6 {[%clk 0:02:52.4]} 2. Nf3 {[%clk 0:03:00.4]}
2... e6 {[%clk 0:02:53.5]} 3. c4 {[%clk 0:03:01]} 3... Bb4+ {[%clk 0:02:53.9]}
4. Bd2 {[%clk 0:03:01.3]} 4... Qe7 {[%clk 0:02:55]} 5. g3 {[%clk 0:03:02.2]}
5... Nc6 {[%clk 0:02:55.8]} 6. Nc3 {[%clk 0:03:03.3]} 6... Bxc3 {[%clk 0:02:56]}
7. Bxc3 {[%clk 0:03:04.4]} 7... Ne4 {[%clk 0:02:57.9]} 8. Qc2 {[%clk 0:03:05.4]}
8... Nxc3 {[%clk 0:02:56.1]} 9. Qxc3 {[%clk 0:03:07.3]} 9... O-O {[%clk
0:02:56.4]} 10. Bg2 {[%clk 0:03:07.9]} 10... d6 {[%clk 0:02:58]} 11. d5 {[%clk
0:03:07.5]} 11... Nb8 {[%clk 0:02:58.4]} 12. O-O {[%clk 0:03:07.8]} 12... e5
{[%clk 0:02:59.1]} 13. e4 {[%clk 0:03:08.4]} 13... a5 {[%clk 0:02:59.5]} 14. Ne1
{[%clk 0:03:08.8]} 14... Nd7 {[%clk 0:02:53.8]} 15. Nd3 {[%clk 0:03:05.6]} 15...
b6 {[%clk 0:02:55]} 16. b3 {[%clk 0:03:05.4]} 16... Nc5 {[%clk 0:02:53.8]} 17.
Nxc5 {[%clk 0:02:56.6]} 17... bxc5 {[%clk 0:02:55.7]} 18. a3 {[%clk 0:02:57.3]}
18... f5 {[%clk 0:02:51.9]} 19. exf5 {[%clk 0:02:56]} 19... Bxf5 {[%clk
0:02:53.1]} 20. b4 {[%clk 0:02:57]} 20... axb4 {[%clk 0:02:54.3]} 21. axb4
{[%clk 0:02:57.9]} 21... cxb4 {[%clk 0:02:46.4]} 22. Qxb4 {[%clk 0:02:58.5]}
22... Qf7 {[%clk 0:02:21.9]} 23. Rxa8 {[%clk 0:02:42.1]} 23... Rxa8 {[%clk
0:02:23.8]} 24. c5 {[%clk 0:02:43.5]} 24... Qe7 {[%clk 0:02:20.2]} 25. Qb7
{[%clk 0:02:33.8]} 25... Re8 {[%clk 0:02:18.1]} 26. Ra1 {[%clk 0:01:39.6]} 26...
e4 {[%clk 0:02:12.7]} 27. cxd6 {[%clk 0:01:16.8]} 27... cxd6 {[%clk 0:01:59.6]}
28. Qxe7 {[%clk 0:01:17.2]} 28... Rxe7 {[%clk 0:02:01.5]} 29. Ra6 {[%clk
0:01:17.7]} 29... Rd7 {[%clk 0:01:56.1]} 30. Ra4 {[%clk 0:01:15.8]} 30... Re7
{[%clk 0:01:46.1]} 31. Ra6 {[%clk 0:01:16.2]} 31... Rb7 {[%clk 0:01:37.9]} 32.
h3 {[%clk 0:01:10.8]} 32... Rb1+ {[%clk 0:01:33.2]} 33. Kh2 {[%clk 0:01:11.4]}
33... Rb2 {[%clk 0:01:32.4]} 34. g4 {[%clk 0:01:12.4]} 34... Bg6 {[%clk
0:01:22.6]} 35. Kg3 {[%clk 0:01:13.4]} 35... Rb3+ {[%clk 0:01:16.7]} 36. Kf4
{[%clk 0:01:12.5]} 36... Rb2 {[%clk 0:01:08.2]} 37. Bxe4 {[%clk 0:01:02.8]}
37... Rxf2+ {[%clk 0:01:04.8]} 38. Ke3 {[%clk 0:01:03.7]} 38... Rh2 {[%clk
0:00:53.8]} 39. Bxg6 {[%clk 0:01:03.7]} 39... hxg6 {[%clk 0:00:54.3]} 40. Rxd6
{[%clk 0:01:03.8]} 40... Kf7 {[%clk 0:00:52.7]} 41. Kf4 {[%clk 0:01:00.3]} 41...
Rxh3 {[%clk 0:00:43.5]} 42. Rd7+ {[%clk 0:00:53.7]} 42... Kf8 {[%clk 0:00:40.3]}
43. Kg5 {[%clk 0:00:52]} 43... Rg3 {[%clk 0:00:37.2]} 44. Ra7 {[%clk 0:00:50]}
44... Rg1 {[%clk 0:00:24.8]} 45. d6 {[%clk 0:00:32.6]} 45... Rd1 {[%clk
0:00:24.7]} 46. Ra8+ {[%clk 0:00:12.7]} 46... Kf7 {[%clk 0:00:24.9]} 47. Ra7+
{[%clk 0:00:14]} 47... Kf8 {[%clk 0:00:19.3]} 48. Ra8+ {[%clk 0:00:15.1]} 48...
Kf7 {[%clk 0:00:20.4]} 49. Ra7+ {[%clk 0:00:15.5]} 49... Kg8 {[%clk 0:00:21.6]}
50. d7 {[%clk 0:00:14.3]} 50... Kh7 {[%clk 0:00:17.2]} 51. Kf4 {[%clk 0:00:15]}
51... Kh6 {[%clk 0:00:18.3]} 52. g5+ {[%clk 0:00:12.8]} 52... Kh5 {[%clk
0:00:18.7]} 53. Ra8 {[%clk 0:00:13.1]} 53... Rd4+ {[%clk 0:00:19]} 54. Kg3
{[%clk 0:00:06.6]} 54... Rxd7 {[%clk 0:00:20.9]} 55. Ra5 {[%clk 0:00:05.6]}
55... Rd4 {[%clk 0:00:21.3]} 56. Rb5 {[%clk 0:00:05.5]} 56... Rg4+ {[%clk
0:00:21.5]} 57. Kh3 {[%clk 0:00:07]} 57... Rh4+ {[%clk 0:00:22.4]} 58. Kg3
{[%clk 0:00:07]} 58... Rg4+ {[%clk 0:00:23.8]} 59. Kh3 {[%clk 0:00:08.5]} 59...
Rxg5 {[%clk 0:00:25.3]} 60. Rb8 {[%clk 0:00:09.6]} 60... Ra5 {[%clk 0:00:25.1]}
61. Rh8+ {[%clk 0:00:09.7]} 61... Kg5 {[%clk 0:00:26.4]} 62. Rb8 {[%clk
0:00:11.6]} 62... Ra3+ {[%clk 0:00:27.4]} 63. Kg2 {[%clk 0:00:12.5]} 63... Ra7
{[%clk 0:00:28.6]} 64. Rb5+ {[%clk 0:00:13.1]} 64... Kh6 {[%clk 0:00:29.8]} 65.
Rb6 {[%clk 0:00:14.4]} 65... Kh5 {[%clk 0:00:30.5]} 66. Rb8 {[%clk 0:00:14.4]}
66... g5 {[%clk 0:00:31.5]} 67. Kg3 {[%clk 0:00:15.7]} 67... Ra3+ {[%clk
0:00:31.9]} 68. Kg2 {[%clk 0:00:16.9]} 68... Rc3 {[%clk 0:00:30.9]} 69. Kh2
{[%clk 0:00:15.4]} 69... Kh4 {[%clk 0:00:29.6]} 70. Kg2 {[%clk 0:00:15.3]} 70...
Rc2+ {[%clk 0:00:28.3]} 71. Kg1 {[%clk 0:00:16.3]} 71... g4 {[%clk 0:00:27]} 72.
Rb3 {[%clk 0:00:09.2]} 72... Re2 {[%clk 0:00:27.3]} 73. Kf1 {[%clk 0:00:08.8]}
73... Rh2 {[%clk 0:00:27.5]} 74. Kg1 {[%clk 0:00:09.5]} 74... Rh3 {[%clk
0:00:28]} 75. Rb8 {[%clk 0:00:10.5]} 75... g6 {[%clk 0:00:28.7]} 76. Kg2 {[%clk
0:00:10.8]} 76... Rg3+ {[%clk 0:00:28.2]} 77. Kh2 {[%clk 0:00:11.5]} 77... Rf3
{[%clk 0:00:28.9]} 78. Kg2 {[%clk 0:00:12]} 78... Rg3+ {[%clk 0:00:29.6]} 79.
Kh2 {[%clk 0:00:13.1]} 79... Ra3 {[%clk 0:00:31.1]} 80. Kg2 {[%clk 0:00:13.7]}
80... Ra2+ {[%clk 0:00:32.1]} 81. Kg1 {[%clk 0:00:14.7]} 81... Kh3 {[%clk
0:00:33.5]} 82. Kf1 {[%clk 0:00:03.6]} 82... Ra1+ {[%clk 0:00:32.5]} 83. Kf2
{[%clk 0:00:04.6]} 83... g3+ {[%clk 0:00:34]} 84. Kf3 {[%clk 0:00:05.5]} 84...
Rf1+ {[%clk 0:00:35]} 85. Ke2 {[%clk 0:00:06.4]} 85... g2 {[%clk 0:00:36.3]} 0-1

[Event "*** Titled Tuesday Blitz"]
[Site "Chess.com"]
[Date "2018.04.03"]
[Round "1"]
[White "rst2003"]
[Black "petrpalachev"]
[Result "0-1"]
[WhiteElo "2214"]
[BlackElo "2561"]
[TimeControl "180+2"]
[EndTime "13:11:44 PDT"]
[Termination "petrpalachev won by resignation"]

1. e4 {[%clk 0:03:01.4]} 1... Nc6 {[%clk 0:02:56.7]} 2. d4 {[%clk 0:03:00.7]}
2... d6 {[%clk 0:02:56.7]} 3. f4 {[%clk 0:02:52.4]} 3... Nf6 {[%clk 0:02:50.7]}
4. Nc3 {[%clk 0:02:52]} 4... g6 {[%clk 0:02:51.6]} 5. Nf3 {[%clk 0:02:52.6]}
5... Bg7 {[%clk 0:02:51]} 6. Bd3 {[%clk 0:02:46.7]} 6... O-O {[%clk 0:02:44.1]}
7. O-O {[%clk 0:02:45.5]} 7... Bg4 {[%clk 0:02:44.2]} 8. Be3 {[%clk 0:02:45.4]}
8... e5 {[%clk 0:02:30.3]} 9. fxe5 {[%clk 0:02:07.9]} 9... dxe5 {[%clk
0:02:32.2]} 10. d5 {[%clk 0:02:09]} 10... Nd4 {[%clk 0:02:32]} 11. Bxd4 {[%clk
0:01:56.8]} 11... exd4 {[%clk 0:02:33.8]} 12. Nb5 {[%clk 0:01:39]} 12... c6
{[%clk 0:02:31.6]} 13. dxc6 {[%clk 0:01:17.8]} 13... bxc6 {[%clk 0:02:31.9]} 14.
Na3 {[%clk 0:01:19.7]} 14... Re8 {[%clk 0:02:29]} 15. Re1 {[%clk 0:01:20.6]}
15... Nd7 {[%clk 0:02:23.1]} 16. h3 {[%clk 0:01:21.7]} 16... Be6 {[%clk
0:02:19.4]} 17. Qd2 {[%clk 0:01:22]} 17... h6 {[%clk 0:02:17.7]} 18. Nc4 {[%clk
0:01:22.7]} 18... Rb8 {[%clk 0:02:16.2]} 19. b3 {[%clk 0:01:22.6]} 19... Nb6
{[%clk 0:02:14.7]} 20. Nce5 {[%clk 0:01:19.5]} 20... Qc7 {[%clk 0:02:13.4]} 21.
Qf4 {[%clk 0:01:16.8]} 21... g5 {[%clk 0:02:03.8]} 22. Qh2 {[%clk 0:01:17]}
22... c5 {[%clk 0:01:56.6]} 23. a4 {[%clk 0:01:13.4]} 23... Bxb3 {[%clk
0:01:53.8]} 24. a5 {[%clk 0:01:07]} 24... Nc8 {[%clk 0:01:37.5]} 25. cxb3 {[%clk
0:00:36.2]} 25... Rxe5 {[%clk 0:01:32]} 26. Rec1 {[%clk 0:00:24.2]} 26... Re7
{[%clk 0:01:27.5]} 27. Qxc7 {[%clk 0:00:20.9]} 27... Rxc7 {[%clk 0:01:29.4]} 28.
Bc4 {[%clk 0:00:22.4]} 28... Nd6 {[%clk 0:01:24.5]} 29. Bd5 {[%clk 0:00:23.8]}
29... Rb4 {[%clk 0:01:07.4]} 30. Ra2 {[%clk 0:00:24.7]} 30... d3 {[%clk
0:01:07.3]} 31. Rd2 {[%clk 0:00:25.2]} 31... Nxe4 {[%clk 0:00:59.1]} 32. Rxd3
{[%clk 0:00:25.8]} 32... Bf6 {[%clk 0:00:44.4]} 33. Re1 {[%clk 0:00:23]} 33...
Nc3 {[%clk 0:00:44.3]} 34. Bc4 {[%clk 0:00:22.7]} 34... Rb8 {[%clk 0:00:43.1]}
35. Rd6 {[%clk 0:00:21.3]} 35... Kg7 {[%clk 0:00:44.4]} 36. Nd2 {[%clk
0:00:20.7]} 36... Bd4+ {[%clk 0:00:44]} 37. Kh1 {[%clk 0:00:21.3]} 37... Nb5
{[%clk 0:00:40.9]} 38. Ra6 {[%clk 0:00:19.7]} 38... Bc3 {[%clk 0:00:41.6]} 39.
Re2 {[%clk 0:00:20]} 39... Bxd2 {[%clk 0:00:41.9]} 40. Rxd2 {[%clk 0:00:21.4]}
40... Nd4 {[%clk 0:00:43.8]} 41. Rf2 {[%clk 0:00:20.8]} 41... Re8 {[%clk
0:00:32]} 42. Kh2 {[%clk 0:00:20]} 42... Ree7 {[%clk 0:00:28.6]} 43. Rff6 {[%clk
0:00:20.7]} 43... h5 {[%clk 0:00:26.3]} 44. Rh6 {[%clk 0:00:20.9]} 44... h4
{[%clk 0:00:26.9]} 45. Rh5 {[%clk 0:00:21.8]} 45... f6 {[%clk 0:00:27.3]} 46.
Bd3 {[%clk 0:00:20.2]} 46... Rc6 {[%clk 0:00:12.4]} 47. Rh7+ {[%clk 0:00:19.6]}
47... Kf8 {[%clk 0:00:14]} 48. Rh8+ {[%clk 0:00:20.8]} 48... Kf7 {[%clk
0:00:14.2]} 49. Rh7+ {[%clk 0:00:22]} 49... Kf8 {[%clk 0:00:12.7]} 50. Rh8+
{[%clk 0:00:23.2]} 50... Kf7 {[%clk 0:00:08.5]} 51. Rh7+ {[%clk 0:00:24.4]}
51... Ke8 {[%clk 0:00:09.4]} 52. Rxe7+ {[%clk 0:00:24.4]} 52... Kxe7 {[%clk
0:00:11.3]} 53. Rxa7+ {[%clk 0:00:25.6]} 53... Kd6 {[%clk 0:00:12.8]} 54. Be4
{[%clk 0:00:26.6]} 54... Rc7 {[%clk 0:00:13.5]} 55. Ra6+ {[%clk 0:00:27.4]}
55... Ke5 {[%clk 0:00:14.7]} 56. Bd3 {[%clk 0:00:26.8]} 56... Nxb3 {[%clk
0:00:15.6]} 57. Bc4 {[%clk 0:00:27.7]} 57... Nd2 {[%clk 0:00:16.6]} 58. Re6+
{[%clk 0:00:28.8]} 58... Kd4 {[%clk 0:00:17.5]} 59. Ba2 {[%clk 0:00:29.2]} 59...
Ne4 {[%clk 0:00:16.5]} 60. a6 {[%clk 0:00:30]} 60... c4 {[%clk 0:00:17.7]} 61.
Rb6 {[%clk 0:00:30.5]} 61... Nc3 {[%clk 0:00:17.2]} 62. Rb7 {[%clk 0:00:31.4]}
62... Rc8 {[%clk 0:00:14]} 63. a7 {[%clk 0:00:31.8]} 63... Ra8 {[%clk
0:00:13.7]} 64. Rd7+ {[%clk 0:00:32.4]} 64... Nd5 {[%clk 0:00:13.6]} 65. Bb1
{[%clk 0:00:32]} 65... Ke5 {[%clk 0:00:09]} 66. Ba2 {[%clk 0:00:32.4]} 66... Kd4
{[%clk 0:00:07.8]} 67. Bb1 {[%clk 0:00:33.5]} 67... Rc8 {[%clk 0:00:04.9]} 68.
Rb7 {[%clk 0:00:31.6]} 68... Ra8 {[%clk 0:00:05.9]} 69. Re7 {[%clk 0:00:31.8]}
69... Kc5 {[%clk 0:00:06.9]} 70. Rf7 {[%clk 0:00:24.8]} 70... c3 {[%clk
0:00:05.5]} 71. Be4 {[%clk 0:00:23.6]} 71... Kd4 {[%clk 0:00:06]} 72. Bb1 {[%clk
0:00:23]} 72... Nb4 {[%clk 0:00:06.7]} 73. Rd7+ {[%clk 0:00:19]} 73... Kc4
{[%clk 0:00:07.5]} 74. Be4 {[%clk 0:00:19.9]} 74... Re8 {[%clk 0:00:03.5]} 75.
a8=Q {[%clk 0:00:20.4]} 75... Rxa8 {[%clk 0:00:04.4]} 76. Bxa8 {[%clk
0:00:22.3]} 76... c2 {[%clk 0:00:05.2]} 77. Rc7+ {[%clk 0:00:21.8]} 77... Kd3
{[%clk 0:00:06.4]} 78. Be4+ {[%clk 0:00:23.3]} 78... Kxe4 {[%clk 0:00:06.9]} 79.
Rc4+ {[%clk 0:00:22.9]} 79... Kd3 {[%clk 0:00:07.6]} 80. Rxb4 {[%clk 0:00:24.2]}
80... c1=Q {[%clk 0:00:08.8]} 81. Rb6 {[%clk 0:00:25.7]} 81... Qf4+ {[%clk
0:00:09.2]} 82. Kh1 {[%clk 0:00:27.2]} 82... Qf1+ {[%clk 0:00:09.5]} 83. Kh2
{[%clk 0:00:28.5]} 83... Qf4+ {[%clk 0:00:10.1]} 84. Kh1 {[%clk 0:00:29.9]}
84... Qc1+ {[%clk 0:00:10.4]} 85. Kh2 {[%clk 0:00:31.5]} 85... Qc7+ {[%clk
0:00:11.9]} 0-1